fUST/lending_fUST_20240430
["ID","MTS","AMOUNT","RATE_DAILY","PERIOD"]
[324957576,1714469440096,-621.43470372,0.00028272,2]
[324957578,1714469440109,-157.73975448,0.00028312,2]
[324957580,1714469440119,-449.68632785,0.00028438,2]
[324957582,1714469440128,-311.491043,0.00028493,2]
[324957584,1714469440137,-620.00000045,0.00028626,2]
[324957586,1714469440146,-152.79752244,0.00028676,2]
[324957588,1714469440156,-166.666666,0.00028679,2]
[324957590,1714469440165,-412.70369497,0.00028735,2]
[324957591,1714469440174,-436.25,0.00028941,2]
[324957592,1714469440183,-277.82426893,0.00029,3]
[324957593,1714469440193,-1067.0,0.00029228,3]
[324957594,1714469440201,-166.666666,0.00029321,2]
[324957595,1714469440211,-449.68632785,0.00029568,2]
[324957596,1714469440220,-620.07173519,0.00029686,2]
[324957597,1714469440229,-152.90057792,0.0002976,2]
[324957598,1714469440240,-166.666666,0.00029962,2]
[324957600,1714469440252,-188.46262606,0.0003,4]
[324957602,1714469440261,-212.54437456,0.0003,4]
[324957604,1714469440271,-1900.02434615,0.0003,4]
[324957605,1714469440282,-154.79876161,0.0003,4]
[324957606,1714469440291,-280.0,0.0003,2]
[324957607,1714469440301,-449.68632785,0.00030101,7]
[324957608,1714469440310,-155.21372883,0.00030174,7]
[324957609,1714469440321,-1096.181492,0.000302,7]
[324957610,1714469440330,-152.79752244,0.0003026,7]
[324957611,1714469440340,-155.21372883,0.00030465,7]
[324957612,1714469440349,-166.666666,0.00030603,2]
[324957613,1714469440359,-1067.0,0.00030678,3]
[324957614,1714469440368,-153.0,0.00030685,2]
[324957615,1714469440378,-1000.0,0.000307,7]
[324957616,1714469440386,-155.21372883,0.00030881,7]
[324957618,1714469440396,-449.68632785,0.00030895,7]
[324957620,1714469440406,-153.0,0.00030959,2]
[324957622,1714469440415,-410.197095,0.00030959,2]
[324957624,1714469440424,-153.0,0.00030959,2]
[324957626,1714469440434,-269.9342733,0.00030959,2]
[324957628,1714469440443,-153.0,0.00030959,2]
[324957630,1714469440452,-153.0,0.00030959,2]
[324957632,1714469440462,-153.8921486,0.0003097,7]
[324957634,1714469440471,-795.65634717,0.0003099,5]
[324957636,1714469440480,-2749.3301688,0.00031,7]
[324957638,1714469440490,-152.79752244,0.00031069,7]
[324957640,1714469440498,-620.00358676,0.0003117,2]
[324957642,1714469440507,-1000.0,0.000312,7]
[324957644,1714469440516,-449.68632785,0.00031315,7]
[324957646,1714469440527,-157.73975448,0.00031337,7]
[324957648,1714469440537,-152.90057792,0.00031459,7]
[324957650,1714469440546,-153.0,0.00031507,2]
[324957652,1714469440556,-44444.0,0.00031678,3]
[324957654,1714469440566,-412.70369497,0.0003168,2]
[324957656,1714469440575,-287.0,0.000317,4]
[324957658,1714469440585,-150.0,0.000317,2]
[324957660,1714469440594,-1000.0,0.000317,7]
[324957662,1714469440603,-151.48563567,0.00031714,2]
[324957664,1714469440613,-150.0,0.0003177,17]
[324957666,1714469440622,-3000.0,0.00031777,10]
[324957668,1714469440631,-3000.0,0.00031777,10]
[324957670,1714469440641,-3000.0,0.00031777,10]
[324957672,1714469440650,-3000.0,0.00031777,10]
[324957674,1714469440659,-3000.0,0.00031777,10]
[324957676,1714469440668,-18029.48148985,0.00031778,7]
[324957678,1714469440678,-165817.89855547,0.00031778,2]
[324957680,1714469440687,-1452.62675219,0.00031778,4]
[324957682,1714469440696,-154.78330338,0.00031778,4]
[324957684,1714469440705,-3002.4030076,0.00031778,2]
[324957686,1714469440714,-3956.05028615,0.00031778,10]
[324957688,1714469440723,-154.79876161,0.00031778,2]
[324957690,1714469440733,-191.54103763,0.00031778,4]
[324957692,1714469440742,-14239.91354927,0.00031778,7]
[324957694,1714469440751,-197.19653738,0.00031778,2]
[324957696,1714469440760,-167.29369631,0.00031778,2]
[324957698,1714469440769,-2000.0,0.00031778,2]
[324957700,1714469440783,-2000.0,0.00031778,2]
[324957702,1714469440791,-2000.0,0.00031778,2]
[324957704,1714469440802,-2000.0,0.00031778,2]
[324957706,1714469440811,-2000.0,0.00031778,2]
[324957708,1714469440820,-1121.66833623,0.00031778,4]
[324957710,1714469440830,-154.81422293,0.00031778,2]
[324957711,1714469440839,-1297.83986334,0.00031778,4]
[324957713,1714469440849,-123106.86543071,0.00031778,30]
[324957715,1714469440858,-154.79876161,0.00031778,4]
[324957716,1714469440868,-199.8929869,0.00031778,4]
[324957718,1714469440878,-2684.07607813,0.00031779,10]
[324957720,1714469440888,-500.0,0.0003178,2]
[324957722,1714469440897,-500.17725542,0.0003178,2]
[324957724,1714469440906,-500.0,0.0003178,2]
[324957726,1714469440915,-515.66609002,0.0003178,2]
[324957728,1714469440924,-500.0,0.0003178,2]
[324957730,1714469440934,-500.0,0.0003178,2]
[324957732,1714469440943,-500.0,0.0003178,2]
[324957734,1714469440953,-500.0,0.0003178,2]
[324957736,1714469440962,-500.0,0.0003178,2]
[324957738,1714469440972,-500.39332496,0.0003178,2]
[324957740,1714469440981,-505.9943156,0.0003178,2]
[324957742,1714469440990,-211.37505663,0.0003178,2]
[324957744,1714469441000,-500.0,0.0003178,2]
[324957746,1714469441009,-500.0,0.0003178,2]
[324957748,1714469441019,-500.0,0.0003178,2]
[324957750,1714469441030,-609.77454068,0.0003178,2]
[324957751,1714469441039,-500.0,0.0003178,2]
[324957752,1714469441048,-513.93,0.0003178,2]
[324957753,1714469441057,-716.63,0.0003178,2]
[324957754,1714469441067,-500.0,0.0003178,2]
[324957755,1714469441078,-500.0,0.0003178,2]
[324957756,1714469441088,-500.0,0.0003178,2]
[324957757,1714469441098,-500.0,0.0003178,2]
[324957758,1714469441107,-274.15130659,0.0003178,2]
[324957759,1714469441117,-500.0,0.0003178,2]
[324957760,1714469441127,-300.0,0.0003178,2]
[324957761,1714469441136,-500.0,0.0003178,2]
[324957762,1714469441146,-500.0,0.0003178,2]
[324957763,1714469441155,-500.0,0.0003178,2]
[324957764,1714469441164,-596.89857871,0.0003178,2]
[324957765,1714469441174,-500.0,0.0003178,2]
[324957766,1714469441184,-500.0,0.0003178,2]
[324957767,1714469441194,-500.0,0.0003178,2]
[324957768,1714469441204,-500.88093415,0.0003178,2]
[324957769,1714469441213,-500.0,0.0003178,2]
[324957770,1714469441223,-500.0,0.0003178,2]
[324957771,1714469441233,-500.0,0.0003178,2]
[324957772,1714469441246,-304.2153024,0.0003178,2]
[324957773,1714469441256,-500.0,0.0003178,2]
[324957774,1714469441265,-500.0,0.0003178,2]
[324957775,1714469441275,-500.0,0.0003178,2]
[324957776,1714469441285,-500.0,0.0003178,2]
[324957777,1714469441294,-500.0,0.0003178,2]
[324957778,1714469441303,-500.0,0.0003178,2]
[324957779,1714469441314,-500.0,0.0003178,2]
[324957780,1714469441323,-500.0,0.0003178,2]
[324957781,1714469441334,-1768.07,0.0003178,2]
[324957782,1714469441344,-500.0,0.0003178,2]
[324957783,1714469441354,-890.43,0.0003178,2]
[324957784,1714469441363,-500.40652132,0.0003178,2]
[324957785,1714469441372,-500.0,0.0003178,2]
[324957786,1714469441382,-500.0,0.0003178,2]
[324957787,1714469441391,-500.0,0.0003178,2]
[324957788,1714469441401,-500.0,0.0003178,2]
[324957789,1714469441411,-585.75222546,0.0003178,2]
[324957790,1714469441420,-500.0,0.0003178,2]
[324957791,1714469441430,-541.70663019,0.0003178,2]
[324957792,1714469441440,-1498.98,0.0003178,2]
[324957793,1714469441449,-501.14246556,0.0003178,2]
[324957794,1714469441459,-500.0,0.0003178,2]
[324957795,1714469441468,-500.0,0.0003178,2]
[324957796,1714469441478,-500.0,0.0003178,2]
[324957797,1714469441487,-500.0,0.0003178,2]
[324957798,1714469441496,-500.0,0.0003178,2]
[324957799,1714469441506,-500.27148347,0.0003178,2]
[324957800,1714469441516,-500.0,0.0003178,2]
[324957801,1714469441528,-201.49518585,0.0003178,2]
[324957802,1714469441537,-500.0,0.0003178,2]
[324957803,1714469441546,-500.0,0.0003178,2]
[324957804,1714469441555,-500.0,0.0003178,14]
[324957805,1714469441565,-154.83333692,0.0003178,2]
[324957806,1714469441574,-500.0,0.0003178,2]
[324957807,1714469441584,-502.87242124,0.0003178,2]
[324957808,1714469441593,-500.0,0.0003178,2]
[324957809,1714469441603,-500.0,0.0003178,2]
[324957810,1714469441613,-882.34,0.0003178,2]
[324957811,1714469441623,-500.0,0.0003178,2]
[324957812,1714469441632,-500.0,0.0003178,2]
[324957813,1714469441642,-500.0,0.0003178,2]
[324957814,1714469441651,-500.0,0.0003178,2]
[324957815,1714469441660,-500.0,0.0003178,2]
[324957816,1714469441670,-894.99,0.0003178,2]
[324957817,1714469441680,-500.0,0.0003178,2]
[324957818,1714469441689,-500.0,0.0003178,2]
[324957819,1714469441699,-500.0,0.0003178,2]
[324957820,1714469441708,-500.0,0.0003178,2]
[324957821,1714469441717,-785.65,0.0003178,2]
[324957822,1714469441727,-500.0,0.0003178,2]
[324957823,1714469441736,-500.0,0.0003178,2]
[324957824,1714469441746,-505.16959624,0.0003178,2]
[324957825,1714469441755,-500.0,0.0003178,2]
[324957826,1714469441764,-599.82,0.0003178,2]
[324957827,1714469441777,-500.0,0.0003178,2]
[324957828,1714469441787,-500.0,0.0003178,2]
[324957829,1714469441796,-500.0,0.0003178,2]
[324957830,1714469441805,-500.0,0.0003178,2]
[324957831,1714469441815,-500.0,0.0003178,2]
[324957832,1714469441824,-500.0,0.0003178,2]
[324957833,1714469441833,-500.0,0.0003178,2]
[324957834,1714469441843,-500.0,0.0003178,2]
[324957835,1714469441852,-500.0,0.0003178,2]
[324957836,1714469441862,-500.0,0.0003178,2]
[324957837,1714469441871,-500.0,0.0003178,2]
[324957838,1714469441881,-500.0,0.0003178,2]
[324957839,1714469441890,-500.0,0.0003178,2]
[324957840,1714469441900,-500.0,0.0003178,2]
[324957841,1714469441909,-513.78288345,0.0003178,2]
[324957842,1714469442079,-500.0,0.0003178,2]
[324957843,1714469442089,-617.47238427,0.0003178,2]
[324957844,1714469442099,-500.0,0.0003178,2]
[324957845,1714469442108,-500.0,0.0003178,2]
[324957846,1714469442119,-559.33,0.0003178,2]
[324957847,1714469442128,-554.17,0.0003178,2]
[324957848,1714469442137,-500.0,0.0003178,2]
[324957849,1714469442147,-500.0,0.0003178,2]
[324957850,1714469442156,-500.0,0.0003178,2]
[324957851,1714469442166,-1442.92,0.0003178,2]
[324957852,1714469442176,-500.0,0.0003178,2]
[324957853,1714469442186,-500.0,0.0003178,2]
[324957854,1714469442195,-543.40234227,0.0003178,2]
[324957855,1714469442205,-1748.77,0.0003178,2]
[324957856,1714469442214,-728.48,0.0003178,2]
[324957857,1714469442224,-500.0,0.0003178,2]
[324957858,1714469442233,-1006.99,0.0003178,2]
[324957859,1714469442244,-500.0,0.0003178,2]
[324957860,1714469442253,-500.0,0.0003178,2]
[324957861,1714469442263,-452.13941649,0.0003178,2]
[324957862,1714469442272,-500.0,0.0003178,2]
[324957863,1714469442286,-500.0,0.0003178,2]
[324957864,1714469442295,-500.0,0.0003178,2]
[324957865,1714469442304,-500.0,0.0003178,2]
[324957866,1714469442312,-500.0,0.0003178,2]
[324957867,1714469442322,-500.0,0.0003178,2]
[324957868,1714469442332,-652.12,0.0003178,2]
[324957869,1714469442342,-1498.55,0.0003178,2]
[324957870,1714469442352,-672.86,0.0003178,2]
[324957871,1714469442361,-500.0,0.0003178,2]
[324957872,1714469442371,-500.0,0.0003178,2]
[324957873,1714469442380,-720.2,0.0003178,2]
[324957874,1714469442389,-428.65565748,0.0003178,2]
[324957875,1714469442398,-500.0,0.0003178,2]
[324957876,1714469442407,-574.86,0.0003178,2]
[324957877,1714469442416,-509.77,0.0003178,2]
[324957878,1714469442425,-500.0,0.0003178,2]
[324957879,1714469442435,-500.0,0.0003178,2]
[324957880,1714469442444,-500.0,0.0003178,2]
[324957881,1714469442453,-353.95625863,0.0003178,2]
[324957882,1714469442462,-500.0,0.0003178,2]
[324957883,1714469442472,-511.97,0.0003178,2]
[324957884,1714469442481,-500.0,0.0003178,2]
[324957885,1714469442490,-500.0,0.0003178,2]
[324957886,1714469442499,-638.59,0.0003178,2]
[324957887,1714469442509,-500.0,0.0003178,2]
[324957888,1714469442518,-652.87,0.0003178,2]
[324957889,1714469442530,-500.0,0.0003178,2]
[324957890,1714469442539,-573.79,0.0003178,2]
[324957891,1714469442548,-500.0,0.0003178,2]
[324957892,1714469442558,-500.0,0.0003178,2]
[324957893,1714469442567,-201.13962678,0.0003178,2]
[324957894,1714469442576,-500.0,0.0003178,2]
[324957895,1714469442586,-500.0,0.0003178,2]
[324957896,1714469442595,-500.0,0.0003178,2]
[324957897,1714469442605,-501.58156019,0.0003178,2]
[324957898,1714469442614,-500.0,0.0003178,2]
[324957899,1714469442623,-500.0,0.0003178,2]
[324957900,1714469442632,-500.0,0.0003178,2]
[324957901,1714469442642,-1738.04,0.0003178,2]
[324957902,1714469442651,-500.0,0.0003178,2]
[324957903,1714469442660,-911.25,0.0003178,2]
[324957904,1714469442669,-1324.85,0.0003178,2]
[324957905,1714469442678,-500.0,0.0003178,2]
[324957906,1714469442688,-242.68815593,0.0003178,2]
[324957907,1714469442697,-500.0,0.0003178,2]
[324957908,1714469442706,-1440.78,0.0003178,2]
[324957909,1714469442716,-594.83,0.0003178,2]
[324957910,1714469442725,-500.0,0.0003178,2]
[324957911,1714469442734,-500.0,0.0003178,2]
[324957912,1714469442743,-428.95152644,0.0003178,2]
[324957913,1714469442752,-503.98,0.0003178,2]
[324957914,1714469442761,-500.0,0.0003178,2]
[324957915,1714469442771,-903.11,0.0003178,2]
[324957916,1714469442782,-518.91878986,0.0003178,2]
[324957917,1714469442791,-500.0,0.0003178,2]
[324957918,1714469442799,-500.0,0.0003178,2]
[324957919,1714469442808,-2770.12,0.0003178,2]
[324957920,1714469442817,-500.0,0.0003178,2]
[324957921,1714469442826,-500.0,0.0003178,2]
[324957922,1714469442835,-524.63607725,0.0003178,2]
[324957923,1714469442844,-2111.64,0.0003178,2]
[324957924,1714469442854,-630.12,0.0003178,2]
[324957925,1714469442863,-893.45,0.0003178,2]
[324957926,1714469442872,-500.0,0.0003178,2]
[324957927,1714469442882,-500.0,0.0003178,2]
[324957928,1714469442891,-500.0,0.0003178,2]
[324957929,1714469442900,-1752.96,0.0003178,2]
[324957930,1714469442909,-500.0,0.0003178,2]
[324957931,1714469442918,-500.0,0.0003178,2]
[324957932,1714469442927,-1042.63,0.0003178,2]
[324957933,1714469442936,-1269.88,0.0003178,2]
[324957934,1714469442945,-500.0,0.0003178,2]
[324957935,1714469442954,-500.0,0.0003178,2]
[324957936,1714469442964,-500.0,0.0003178,2]
[324957937,1714469442973,-500.0,0.0003178,2]
[324957938,1714469442982,-500.0,0.0003178,2]
[324957939,1714469442991,-500.0,0.0003178,2]
[324957940,1714469443000,-500.0,0.0003178,2]
[324957941,1714469443009,-500.0,0.0003178,2]
[324957942,1714469443018,-500.248813,0.0003178,2]
[324957943,1714469443028,-1004.01,0.0003178,2]
[324957944,1714469443037,-500.0,0.0003178,2]
[324957945,1714469443046,-657.48,0.0003178,2]
[324957946,1714469443055,-714.47,0.0003178,2]
[324957947,1714469443064,-3447.14,0.0003178,2]
[324957948,1714469443073,-1379.28,0.0003178,2]
[324957949,1714469443083,-500.0,0.0003178,2]
[324957950,1714469443092,-577.33,0.0003178,2]
[324957951,1714469443100,-500.0,0.0003178,2]
[324957952,1714469443110,-500.0,0.0003178,2]
[324957953,1714469443119,-527.95,0.0003178,2]
[324957954,1714469443128,-527.95,0.0003178,2]
[324957956,1714469443137,-500.0,0.0003178,2]
[324957958,1714469443146,-500.0,0.0003178,2]
[324957960,1714469443154,-500.0,0.0003178,2]
[324957962,1714469443164,-500.0,0.0003178,2]
[324957964,1714469443173,-500.0,0.0003178,2]
[324957966,1714469443182,-500.0,0.0003178,2]
[324957968,1714469443191,-500.0,0.0003178,2]
[324957970,1714469443199,-500.0,0.0003178,2]
[324957972,1714469443208,-2622.44,0.0003178,2]
[324957974,1714469443218,-500.0,0.0003178,2]
[324957976,1714469443227,-500.0,0.0003178,2]
[324957978,1714469443236,-500.0,0.0003178,2]
[324957980,1714469443249,-532.84,0.0003178,2]
[324957981,1714469443259,-500.0,0.0003178,2]
[324957983,1714469443268,-500.0,0.0003178,2]
[324957987,1714469443278,-500.0,0.0003178,2]
[324957990,1714469443288,-561.27769558,0.0003178,2]
[324957992,1714469443297,-626.38,0.0003178,2]
[324957993,1714469443306,-804.08,0.0003178,2]
[324957994,1714469443316,-500.0,0.0003178,2]
[324957995,1714469443325,-821.44,0.0003178,2]
[324957996,1714469443335,-603.01,0.0003178,2]
[324957997,1714469443343,-685.27,0.0003178,2]
[324957998,1714469443352,-500.0,0.0003178,2]
[324957999,1714469443361,-1469.45,0.0003178,2]
[324958000,1714469443371,-513.6,0.0003178,2]
[324958001,1714469443380,-500.0,0.0003178,2]
[324958002,1714469443389,-500.0,0.0003178,2]
[324958003,1714469443398,-560.38,0.0003178,2]
[324958005,1714469443407,-500.0,0.0003178,2]
[324958007,1714469443417,-500.0,0.0003178,2]
[324958009,1714469443426,-500.0,0.0003178,2]
[324958011,1714469443435,-508.35994919,0.0003178,2]
[324958013,1714469443444,-1006.5,0.0003178,2]
[324958015,1714469443453,-500.0,0.0003178,2]
[324958017,1714469443462,-500.0,0.0003178,2]
[324958018,1714469443470,-500.0,0.0003178,2]
[324958020,1714469443479,-1353.38,0.0003178,2]
[324958022,1714469443491,-505.64,0.0003178,2]
[324958024,1714469443500,-500.0,0.0003178,2]
[324958025,1714469443509,-3236.72,0.0003178,2]
[324958027,1714469443518,-8014.06,0.0003178,2]
[324958029,1714469443528,-500.0,0.0003178,2]
[324958031,1714469443537,-500.0,0.0003178,2]
[324958032,1714469443547,-921.22,0.0003178,2]
[324958034,1714469443556,-1897.04,0.0003178,2]
[324958036,1714469443565,-500.0,0.0003178,2]
[324958038,1714469443574,-530.82868548,0.0003178,2]
[324958039,1714469443583,-500.0,0.0003178,2]
[324958041,1714469443592,-500.0,0.0003178,2]
[324958043,1714469443601,-300.0,0.0003178,2]
[324958045,1714469443610,-483.8101321,0.0003178,2]
[324958046,1714469443619,-500.0,0.0003178,2]
[324958048,1714469443628,-500.0,0.0003178,2]
[324958050,1714469443637,-500.0,0.0003178,2]
[324958052,1714469443646,-500.0,0.0003178,2]
[324958053,1714469443656,-500.0,0.0003178,2]
[324958055,1714469443664,-500.0,0.0003178,2]
[324958057,1714469443674,-500.0,0.0003178,2]
[324958058,1714469443683,-500.0,0.0003178,2]
[324958060,1714469443692,-1137.4,0.0003178,2]
[324958062,1714469443702,-500.0,0.0003178,2]
[324958064,1714469443711,-928.29,0.0003178,2]
[324958066,1714469443720,-500.0,0.0003178,2]
[324958068,1714469443729,-500.0,0.0003178,2]
[324958069,1714469443739,-3242.44,0.0003178,2]
[324958071,1714469443748,-500.0,0.0003178,2]
[324958073,1714469443757,-500.0,0.0003178,2]
[324958075,1714469443767,-530.17,0.0003178,2]
[324958077,1714469443777,-294.99521183,0.0003178,2]
[324958079,1714469443787,-611.4,0.0003178,2]
[324958080,1714469443796,-2127.99,0.0003178,2]
[324958082,1714469443805,-556.41,0.0003178,2]
[324958084,1714469443815,-599.02365329,0.0003178,2]
[324958086,1714469443824,-933.38,0.0003178,2]
[324958088,1714469443833,-267.765277,0.0003178,2]
[324958089,1714469443842,-518.31,0.0003178,2]
[324958091,1714469443852,-1754.77,0.0003178,2]
[324958093,1714469443861,-500.0,0.0003178,2]
[324958095,1714469443870,-500.0,0.0003178,2]
[324958096,1714469443879,-577.75,0.0003178,2]
[324958098,1714469443888,-1320.84,0.0003178,2]
[324958100,1714469443897,-500.0,0.0003178,2]
[324958101,1714469443907,-500.0,0.0003178,2]
[324958103,1714469443916,-1628.49,0.0003178,2]
[324958105,1714469443926,-654.2,0.0003178,2]
[324958107,1714469443934,-500.0,0.0003178,2]
[324958109,1714469443944,-524.83914311,0.0003178,2]
[324958111,1714469443953,-500.0,0.0003178,2]
[324958113,1714469443962,-500.0,0.0003178,2]
[324958117,1714469443971,-500.0,0.0003178,2]
[324958119,1714469443980,-500.0,0.0003178,2]
[324958121,1714469443989,-500.0,0.0003178,2]
[324958124,1714469443998,-500.0,0.0003178,2]
[324958127,1714469444007,-3082.48,0.0003178,2]
[324958129,1714469444016,-500.0,0.0003178,2]
[324958130,1714469444025,-500.0,0.0003178,2]
[324958132,1714469444036,-500.0,0.0003178,2]
[324958134,1714469444044,-545.68,0.0003178,2]
[324958136,1714469444054,-500.0,0.0003178,2]
[324958138,1714469444063,-500.0,0.0003178,2]
[324958140,1714469444072,-500.0,0.0003178,2]
[324958142,1714469444081,-500.0,0.0003178,2]
[324958143,1714469444091,-500.0,0.0003178,2]
[324958145,1714469444099,-500.0,0.0003178,2]
[324958147,1714469444108,-500.0,0.0003178,2]
[324958149,1714469444117,-520.45497619,0.0003178,2]
[324958151,1714469444127,-500.0,0.0003178,2]
[324958153,1714469444136,-500.0,0.0003178,2]
[324958154,1714469444145,-500.0,0.0003178,2]
[324958156,1714469444154,-500.0,0.0003178,2]
[324958158,1714469444163,-1774.44,0.0003178,2]
[324958160,1714469444173,-639.64,0.0003178,2]
[324958162,1714469444182,-501.51436934,0.0003178,2]
[324958164,1714469444191,-507.37426636,0.0003178,2]
[324958166,1714469444200,-500.0,0.0003178,2]
[324958168,1714469444209,-500.0,0.0003178,2]
[324958169,1714469444218,-703.13,0.0003178,2]
[324958171,1714469444227,-1525.02,0.0003178,2]
[324958173,1714469444237,-500.0,0.0003178,2]
[324958175,1714469444250,-501.63257989,0.0003178,2]
[324958177,1714469444259,-555.04,0.0003178,2]
[324958179,1714469444269,-500.0,0.0003178,2]
[324958181,1714469444282,-500.0,0.0003178,2]
[324958182,1714469444292,-1273.96,0.0003178,2]
[324958184,1714469444301,-500.0,0.0003178,2]
[324958186,1714469444310,-707.6,0.0003178,2]
[324958188,1714469444319,-799.99,0.0003178,2]
[324958190,1714469444331,-500.0,0.0003178,2]
[324958192,1714469444341,-500.0,0.0003178,30]
[324958194,1714469444350,-500.0,0.0003178,2]
[324958196,1714469444358,-500.0,0.0003178,2]
[324958198,1714469444367,-995.58,0.0003178,2]
[324958199,1714469444377,-503.75589433,0.0003178,2]
[324958201,1714469444386,-186.49936577,0.0003178,2]
[324958203,1714469444396,-500.0,0.0003178,2]
[324958205,1714469444405,-647.15544297,0.0003178,2]
[324958207,1714469444415,-486.09670969,0.0003178,2]
[324958209,1714469444424,-500.0,0.0003178,2]
[324958211,1714469444433,-500.0,0.0003178,2]
[324958212,1714469444442,-500.0,0.0003178,2]
[324958214,1714469444451,-500.88982496,0.0003178,2]
[324958216,1714469444459,-500.0,0.0003178,2]
[324958218,1714469444468,-500.0,0.0003178,2]
[324958220,1714469444477,-150.0,0.00031822,2]
[324958222,1714469444486,-150.0,0.00031823,2]
[324958223,1714469444495,-157.73975448,0.00031887,7]
[324958225,1714469444503,-1000.0,0.000319,60]
[324958227,1714469444513,-417.0,0.00031941,2]
[324958229,1714469444521,-152.90057792,0.0003199,7]
[324958231,1714469444532,-638.81553849,0.00032,4]
[324958232,1714469444541,-177.0,0.00032,5]
[324958234,1714469444550,-5000.0,0.00032,7]
[324958236,1714469444559,-1220.27549495,0.00032,3]
[324958238,1714469444568,-170.70516231,0.00032038,5]
[324958240,1714469444576,-168.19,0.00032044,35]
[324958242,1714469444586,-209.82008119,0.00032047,3]
[324958244,1714469444595,-372.87562938,0.00032048,4]
[324958245,1714469444604,-381.95389996,0.00032049,4]
[324958247,1714469444613,-9122.41267022,0.00032051,2]
[324958249,1714469444622,-500.0,0.00032054,2]
[324958251,1714469444631,-500.0,0.00032054,2]
[324958253,1714469444640,-500.0,0.00032054,2]
[324958254,1714469444649,-500.0,0.00032054,2]
[324958256,1714469444658,-500.0,0.00032054,2]
[324958258,1714469444667,-500.0,0.00032054,2]
[324958260,1714469444676,-500.0,0.00032054,2]
[324958262,1714469444685,-500.0,0.00032054,2]
[324958264,1714469444694,-500.0,0.00032054,2]
[324958265,1714469444703,-500.0,0.00032054,2]
[324958267,1714469444712,-513.93,0.00032054,2]
[324958269,1714469444721,-716.63,0.00032054,2]
[324958271,1714469444730,-500.0,0.00032054,2]
[324958273,1714469444739,-500.0,0.00032054,2]
[324958275,1714469444748,-500.0,0.00032054,2]
[324958277,1714469444757,-500.0,0.00032054,2]
[324958278,1714469444766,-500.0,0.00032054,2]
[324958280,1714469444775,-151.0,0.00032054,2]
[324958282,1714469444785,-300.0,0.00032054,2]
[324958284,1714469444794,-500.0,0.00032054,2]
[324958285,1714469444803,-500.0,0.00032054,2]
[324958287,1714469444812,-269.44928437,0.00032054,2]
[324958289,1714469444821,-500.0,0.00032054,2]
[324958291,1714469444830,-500.0,0.00032054,2]
[324958293,1714469444840,-500.0,0.00032054,2]
[324958295,1714469444849,-500.0,0.00032054,2]
[324958297,1714469444858,-500.0,0.00032054,2]
[324958298,1714469444867,-500.0,0.00032054,2]
[324958300,1714469444876,-500.0,0.00032054,2]
[324958302,1714469444885,-500.0,0.00032054,2]
[324958304,1714469444894,-500.0,0.00032054,2]
[324958306,1714469444904,-500.0,0.00032054,2]
[324958308,1714469444913,-500.0,0.00032054,2]
[324958310,1714469444921,-500.0,0.00032054,2]
[324958311,1714469444930,-500.0,0.00032054,2]
[324958313,1714469444940,-346.70321081,0.00032054,2]
[324958315,1714469444948,-1768.07,0.00032054,2]